bitfinex/quotes_BTCUSD_20251117
["timestamp","ask_amount","ask_price","bid_price","bid_amount"]
[1763354433007,0.673,95519.0,95516.0,0.1]
[1763354434187,0.673,95519.0,95514.0,0.1118]
[1763354434607,0.673,95519.0,95516.0,0.101]
[1763354434803,0.673,95519.0,95516.0,0.1]
[1763354435246,0.323,95523.0,95516.0,0.101]
[1763354435450,0.10344135,95522.0,95517.0,0.01051092]
[1763354435652,0.01952135,95521.0,95517.0,0.01051092]
[1763354435804,0.08392,95522.0,95518.0,0.02274]
[1763354436155,0.01951925,95521.0,95520.0,0.01519]
[1763354436574,0.01951925,95521.0,95520.0,0.11519]
[1763354437353,0.01951925,95521.0,95520.0,0.13793]
[1763354438086,0.01951925,95521.0,95520.0,0.11619]
[1763354438295,0.03602925,95521.0,95520.0,0.101]
[1763354438779,0.03602925,95521.0,95520.0,0.1112]
[1763354438977,0.03602925,95521.0,95520.0,0.1122]
[1763354441201,0.01951925,95521.0,95520.0,0.102]
[1763354442120,0.01951925,95521.0,95520.0,0.13993]
[1763354443091,0.01951925,95521.0,95520.0,0.11719]
[1763354443297,0.01951925,95521.0,95520.0,0.102]
[1763354444474,0.01951925,95521.0,95520.0,0.11719]
[1763354444677,0.01951925,95521.0,95520.0,0.13993]
[1763354445599,0.42643925,95521.0,95520.0,0.13993]
[1763354446006,0.40692,95521.0,95520.0,0.102]
[1763354446205,0.42651768,95521.0,95520.0,0.102]
[1763354446925,0.34259768,95521.0,95520.0,0.102]
[1763354448319,0.34259768,95521.0,95520.0,0.12338]
[1763354453189,0.323,95521.0,95520.0,0.12338]
[1763354455583,0.49084,95521.0,95520.0,0.12338]
[1763354455786,0.49084,95521.0,95520.0,0.16182]
[1763354463086,0.323,95521.0,95520.0,0.16182]
[1763354465421,0.40692,95521.0,95520.0,0.16182]
[1763354465744,0.49084,95521.0,95520.0,0.16182]
[1763354466295,0.49084,95521.0,95520.0,0.102]
[1763354466507,0.40692,95521.0,95520.0,0.102]
[1763354467115,0.42262,95521.0,95520.0,0.102]
[1763354467418,0.36152,95521.0,95520.0,0.102]
[1763354467620,0.36152,95521.0,95520.0,0.002]
[1763354467829,0.37795734,95521.0,95520.0,0.002]
[1763354468259,0.38115768,95521.0,95520.0,0.002]
[1763354468461,0.36152,95521.0,95520.0,0.001]
[1763354468669,0.323,95520.0,95493.0,0.09980931]
[1763354468871,0.02366,95507.0,95493.0,0.09980931]
[1763354469304,0.04648,95507.0,95506.0,0.10013269]
[1763354469786,0.02366,95507.0,95506.0,0.11014596]
[1763354470420,0.00796,95507.0,95506.0,0.11014596]
[1763354470855,0.00796,95507.0,95506.0,0.11114596]
[1763354471070,0.02366,95507.0,95506.0,0.11114596]
[1763354471277,0.00796,95507.0,95506.0,0.11114596]
[1763354475433,0.49888,95507.0,95506.0,0.11114596]
[1763354475625,0.43135849,95507.0,95506.0,0.11114596]
[1763354476233,0.42339849,95507.0,95506.0,0.11114596]
[1763354476450,0.33943849,95507.0,95506.0,0.15017596]
[1763354477240,0.323,95507.0,95506.0,0.15017596]
[1763354485673,0.40696,95507.0,95506.0,0.15017596]
[1763354488414,0.40696,95507.0,95506.0,0.12616596]
[1763354488829,0.40696,95507.0,95506.0,0.14866596]
[1763354489229,0.15410415,95507.0,95506.0,0.13865269]
[1763354489432,0.0002,95540.0,95511.0,0.04341874]
[1763354489637,0.03147887,95534.0,95531.0,0.04341874]
[1763354489845,0.08396,95539.0,95531.0,0.04341874]
[1763354490049,0.08396,95539.0,95525.0,0.04341874]
[1763354490251,0.08396,95539.0,95532.0,0.04341874]
[1763354490663,0.02389,95540.0,95532.0,0.04341874]
[1763354490870,0.02389,95540.0,95532.0,0.14341874]
[1763354491075,0.0002,95540.0,95538.0,0.1]
[1763354491665,0.0002,95540.0,95538.0,0.2]
[1763354492333,0.0002,95540.0,95538.0,0.201]
[1763354493250,0.0002,95540.0,95538.0,0.202]
[1763354495014,0.01509,95539.0,95538.0,0.202]
[1763354495521,0.52962,95539.0,95538.0,0.202]
[1763354495908,0.52962,95539.0,95538.0,0.201]
[1763354496272,0.52962,95539.0,95538.0,0.202]
[1763354496471,0.52962,95539.0,95538.0,0.201]
[1763354496671,0.52962,95539.0,95538.0,0.202]
[1763354497919,0.4457,95539.0,95538.0,0.102]
[1763354498125,0.36178,95539.0,95538.0,0.102]
[1763354499005,0.36178,95539.0,95538.0,0.101]
[1763354499207,0.36178,95539.0,95538.0,0.102]
[1763354499407,0.36178,95539.0,95538.0,0.101]
[1763354499606,0.393261,95539.0,95538.0,0.101]
[1763354505656,0.561101,95539.0,95538.0,0.101]
[1763354506589,0.57753653,95539.0,95538.0,0.101]
[1763354506832,0.561101,95539.0,95538.0,0.101]
[1763354507272,0.57753657,95539.0,95538.0,0.101]
[1763354507516,0.561101,95539.0,95538.0,0.101]
[1763354508644,0.477181,95539.0,95538.0,0.101]
[1763354508845,0.393261,95539.0,95538.0,0.101]
[1763354510412,0.323,95538.0,95470.0,0.00999999]
[1763354510634,0.323,95489.0,95485.0,0.09980931]
[1763354510835,0.323,95489.0,95486.0,0.04341874]
[1763354511266,0.323,95489.0,95485.0,0.09980931]
[1763354511475,0.323,95489.0,95486.0,0.1]
[1763354511682,0.01171,95490.0,95488.0,0.04341874]
[1763354512291,0.01171,95490.0,95488.0,0.14341874]
[1763354513098,0.01171,95495.0,95488.0,0.14441874]
[1763354513277,0.01171,95495.0,95488.0,0.14541874]
[1763354513882,0.01171,95495.0,95488.0,0.14441874]
[1763354514684,0.01171,95495.0,95488.0,0.14341874]
[1763354515091,0.01171,95495.0,95488.0,0.14441874]
[1763354515291,0.01171,95495.0,95488.0,0.14541874]
[1763354515493,0.08392,95494.0,95488.0,0.14541874]
[1763354516328,0.08392,95494.0,95488.0,0.14341874]
[1763354516541,0.08392,95494.0,95488.0,0.14441874]
[1763354516852,0.08392,95494.0,95488.0,0.14541874]
[1763354517870,0.01171,95495.0,95488.0,0.14541874]
[1763354518649,0.323,95499.0,95488.0,0.14441874]
[1763354519015,0.01171,95507.0,95490.0,0.04341874]
[1763354519214,0.03148877,95501.0,95490.0,0.04341874]
[1763354519590,0.03148877,95501.0,95490.0,0.14341874]
[1763354519976,0.03148877,95501.0,95496.0,0.1]
[1763354520558,0.01643856,95507.0,95500.0,0.09980931]
[1763354520966,0.03148569,95513.0,95500.0,0.09980931]
[1763354521314,0.03148569,95513.0,95500.0,0.19980931]
[1763354521718,0.03148569,95513.0,95500.0,0.3002518]
[1763354522098,0.03148569,95513.0,95500.0,0.3012518]
[1763354522987,0.03148569,95513.0,95500.0,0.3022518]
[1763354523524,0.01171,95516.0,95500.0,0.57943656]
[1763354523665,0.01171,95516.0,95500.0,0.3022518]
[1763354523872,0.03148569,95515.0,95500.0,0.3022518]
[1763354524271,0.03148569,95515.0,95500.0,0.3012518]
[1763354525216,0.03148569,95515.0,95500.0,0.3002518]
[1763354525370,0.40696,95514.0,95501.0,0.04341874]
[1763354525590,0.49092,95514.0,95501.0,0.04341874]
[1763354526241,0.49092,95514.0,95501.0,0.14341874]
[1763354526458,0.49092,95514.0,95501.0,0.14441874]
[1763354526671,0.49092,95514.0,95501.0,0.24441874]
[1763354527516,0.49092,95514.0,95501.0,0.24541874]
[1763354527932,0.0227,95513.0,95501.0,0.24541874]
[1763354528358,0.01171,95502.0,95501.0,0.24541874]
[1763354528789,0.01171,95502.0,95501.0,0.2]
[1763354529007,0.02717,95502.0,95501.0,0.2]
[1763354529207,0.02717,95502.0,95501.0,0.202]
[1763354529413,0.04987,95502.0,95501.0,0.201]
[1763354529625,0.02717,95502.0,95501.0,0.202]
[1763354529839,0.323,95510.0,95501.0,0.202]
[1763354530085,0.0227,95518.0,95502.0,0.09980931]
[1763354530293,0.03148573,95514.0,95502.0,0.09980931]
[1763354530714,0.03148573,95514.0,95502.0,0.19980931]
[1763354530924,0.0227,95513.0,95502.0,0.19980931]
[1763354531340,0.0227,95513.0,95502.0,0.20080931]
[1763354531547,0.03441,95516.0,95511.0,0.1]
[1763354532022,0.0227,95515.0,95511.0,0.1]
[1763354532441,0.05418573,95515.0,95511.0,0.2]
[1763354532849,0.05418573,95515.0,95511.0,0.201]
[1763354533671,0.05418573,95515.0,95511.0,0.202]
[1763354533892,0.05418573,95515.0,95511.0,0.201]
[1763354534077,0.01546,95512.0,95511.0,0.201]
[1763354534429,0.01546,95512.0,95511.0,0.101]
[1763354534654,0.03816,95512.0,95511.0,0.002]
[1763354534826,0.03816,95512.0,95500.0,0.00044249]
[1763354535044,0.01546,95501.0,95500.0,0.00044249]
[1763354535424,0.52894,95501.0,95500.0,0.00044249]
[1763354538359,0.50638,95501.0,95500.0,0.00044249]
[1763354538695,0.53035,95501.0,95500.0,0.00044249]
[1763354539493,0.36243,95501.0,95500.0,0.00044249]
[1763354541373,0.323,95501.0,95500.0,0.00044249]
[1763354544489,0.323,95501.0,95500.0,0.00144249]
[1763354544718,0.323,95501.0,95500.0,0.00244249]
[1763354545559,0.40696,95501.0,95500.0,0.00244249]
[1763354545717,0.42323,95501.0,95500.0,0.00244249]
[1763354545923,0.4472,95501.0,95500.0,0.00244249]
[1763354546331,0.36324,95501.0,95500.0,0.00244249]
[1763354548809,0.33927,95501.0,95500.0,0.00244249]
[1763354549057,0.36324,95501.0,95500.0,0.00244249]
[1763354552333,0.36324,95501.0,95500.0,0.00144249]
[1763354552795,0.36324,95501.0,95500.0,0.00044249]
[1763354554214,0.39473191,95501.0,95500.0,0.00044249]
[1763354555639,0.56265191,95501.0,95500.0,0.00044249]
[1763354555912,0.45472191,95501.0,95500.0,0.00044249]
[1763354556124,0.49092,95501.0,95500.0,0.00044249]
[1763354556349,0.40696,95501.0,95500.0,0.00044249]
[1763354556594,0.4472,95501.0,95500.0,0.00044249]
[1763354559271,0.36324,95501.0,95500.0,0.00044249]
[1763354560438,0.323,95501.0,95500.0,0.00044249]
[1763354560876,0.33927,95501.0,95500.0,0.00044249]
[1763354563484,0.323,95501.0,95500.0,0.00044249]
[1763354564312,0.33927,95501.0,95500.0,0.00044249]
[1763354564729,0.323,95501.0,95500.0,0.00044249]
[1763354565461,0.49092,95501.0,95500.0,0.00044249]
[1763354566679,0.323,95501.0,95500.0,0.00044249]
[1763354567937,0.01643897,95504.0,95500.0,0.00044249]
[1763354570533,0.01176,95521.0,95500.0,0.00044249]
[1763354570732,0.02819736,95521.0,95508.0,0.09980931]
[1763354570858,0.01176,95521.0,95508.0,0.09980931]
[1763354571273,0.01176,95521.0,95516.0,0.1]
[1763354572478,0.01176,95521.0,95516.0,0.202]
[1763354573901,0.01643727,95520.0,95516.0,0.202]
[1763354574758,0.01643727,95520.0,95516.0,0.201]
[1763354574958,0.01643727,95520.0,95516.0,0.202]
[1763354575340,0.01643727,95520.0,95516.0,0.201]
[1763354575546,0.01643727,95520.0,95516.0,0.202]
[1763354575547,0.49092,95519.0,95516.0,0.202]
[1763354576316,0.50268,95519.0,95516.0,0.202]
[1763354576519,0.50268,95519.0,95516.0,0.102]
[1763354576870,0.50268,95519.0,95516.0,0.101]
[1763354577283,0.01643727,95520.0,95517.0,0.04341874]
[1763354577859,0.01176,95536.0,95517.0,0.04341874]
[1763354578209,0.01176,95536.0,95525.0,0.09980931]
[1763354579016,0.01176,95536.0,95525.0,0.19980931]
[1763354579507,0.323,95539.0,95526.0,0.04341874]
[1763354579683,0.0002,95540.0,95526.0,0.04341874]
[1763354580245,0.0002,95540.0,95530.0,0.1625119]
[1763354580474,0.0002,95540.0,95531.0,0.04341874]
[1763354580819,0.0002,95540.0,95534.0,0.1]
[1763354580951,0.0002,95540.0,95535.0,0.04341874]
[1763354583166,0.0002,95540.0,95534.0,0.04341874]
[1763354584061,0.0002,95540.0,95539.0,0.04341874]
[1763354585050,0.0002,95540.0,95539.0,0.04441874]
[1763354585450,0.08412,95540.0,95539.0,0.04541874]
[1763354588192,0.0002,95540.0,95539.0,0.04541874]
[1763354591999,0.05314,95540.0,95539.0,0.002]
[1763354593555,0.01196,95540.0,95539.0,0.002]
[1763354593763,0.0002,95540.0,95539.0,0.002]
[1763354595514,0.08412,95540.0,95539.0,0.002]
[1763354599395,0.0002,95540.0,95539.0,0.002]
[1763354602159,0.0394,95540.0,95539.0,0.002]
[1763354603858,0.0002,95540.0,95539.0,0.002]
[1763354605275,0.01646,95540.0,95539.0,0.002]
[1763354605469,0.5073,95540.0,95539.0,0.002]
[1763354606714,0.53024,95540.0,95539.0,0.002]
[1763354608993,0.40712,95540.0,95539.0,0.002]
[1763354609213,0.0002,95540.0,95539.0,0.002]
[1763354609428,0.0002,95540.0,95539.0,0.04541874]
[1763354615571,0.08412,95540.0,95539.0,0.04541874]
[1763354615740,0.0002,95540.0,95539.0,0.04541874]
[1763354616184,0.0002,95540.0,95539.0,0.14541874]
[1763354616770,0.0002,95540.0,95539.0,0.14441874]
[1763354616996,0.0002,95540.0,95539.0,0.14341874]
[1763354617193,0.0002,95540.0,95539.0,0.24341874]
[1763354617402,0.0002,95540.0,95539.0,0.24541874]
[1763354617820,0.0002,95540.0,95539.0,0.24341874]
[1763354618223,0.0002,95540.0,95539.0,0.24741874]
[1763354618637,0.0002,95540.0,95539.0,0.24541874]
[1763354618812,0.0002,95540.0,95539.0,0.24741874]
[1763354622023,0.0394,95540.0,95539.0,0.204]
[1763354622218,0.0394,95540.0,95539.0,0.104]
[1763354622806,0.0394,95540.0,95539.0,0.004]
[1763354622977,0.0394,95540.0,95539.0,0.002]
[1763354623500,0.0002,95540.0,95539.0,0.003]
[1763354623629,0.0002,95540.0,95539.0,0.04641874]
[1763354623836,0.0002,95540.0,95539.0,0.04541874]
[1763354624045,0.0002,95540.0,95539.0,0.04341874]
[1763354624455,0.0002,95540.0,95539.0,0.04441874]
[1763354624658,0.0002,95540.0,95539.0,0.04341874]
[1763354624858,0.0002,95540.0,95539.0,0.04441874]
[1763354625099,0.0002,95540.0,95539.0,0.04541874]
[1763354625485,0.08412,95540.0,95539.0,0.04541874]
[1763354625685,0.08412,95540.0,95539.0,0.14541874]
[1763354628168,0.01685,95540.0,95539.0,0.14541874]
[1763354628322,0.0002,95540.0,95539.0,0.14541874]
[1763354631630,0.0002,95540.0,95539.0,0.24541874]
[1763354632243,0.0002,95540.0,95539.0,0.24441874]
[1763354632472,0.0002,95540.0,95539.0,0.24341874]
[1763354632686,2.727e-05,95540.0,95539.0,0.24341874]
[1763354632876,2.727e-05,95540.0,95539.0,0.24441874]
[1763354633497,2.727e-05,95540.0,95539.0,0.24641874]
[1763354635215,2.727e-05,95540.0,95539.0,0.3242765]
[1763354635639,0.08394727,95540.0,95539.0,0.3242765]
[1763354637625,0.0002,95550.0,95549.0,0.09980931]
[1763354637824,0.08425264,95550.0,95549.0,0.09980931]
[1763354638220,0.08425264,95550.0,95549.0,0.19980931]
[1763354638892,0.08425264,95550.0,95549.0,0.30080931]
[1763354640073,0.08425264,95550.0,95549.0,0.30180931]
[1763354640299,0.002,95559.0,95550.0,0.05341873]
[1763354640474,0.08392,95558.0,95550.0,0.05341873]
[1763354640675,0.08392,95558.0,95551.0,0.04341874]
[1763354640875,0.08392,95558.0,95554.0,0.04341874]
[1763354641242,0.08392,95558.0,95551.0,0.04341874]
[1763354642001,0.08392,95558.0,95555.0,0.04341874]
[1763354642607,0.08392,95558.0,95555.0,0.14341874]
[1763354643125,0.08392,95558.0,95555.0,0.24341874]
[1763354643485,0.08392,95558.0,95555.0,0.24441874]
[1763354644070,0.08392,95558.0,95555.0,0.24541874]
[1763354650961,0.08392,95558.0,95556.0,0.04341874]
[1763354652003,0.01665,95557.0,95556.0,0.04341874]
[1763354652180,0.03945,95557.0,95556.0,0.14441874]
[1763354652575,0.03945,95557.0,95556.0,0.102]
[1763354652827,0.03945,95557.0,95556.0,0.002]
[1763354652995,0.03945,95557.0,95556.0,0.001]
[1763354653172,0.01665,95557.0,95556.0,0.002]
[1763354653578,0.01665,95557.0,95556.0,0.001]
[1763354653789,0.01665,95557.0,95556.0,0.101]
[1763354653994,0.01665,95557.0,95556.0,0.102]
[1763354654412,0.01665,95557.0,95556.0,0.101]
[1763354654790,0.01665,95557.0,95556.0,0.102]
[1763354655578,0.10053,95557.0,95556.0,0.102]
[1763354655709,0.10053,95557.0,95556.0,0.002]
[1763354655710,0.44751,95557.0,95556.0,0.002]
[1763354656564,0.44751,95557.0,95556.0,0.001]
[1763354657422,0.323,95556.0,95554.0,0.1]
[1763354657748,0.01548,95555.0,95554.0,0.1]
[1763354657942,0.04027,95555.0,95553.0,0.1]
[1763354658468,0.04027,95554.0,95553.0,0.1]
[1763354658909,0.04027,95554.0,95550.0,0.1]
[1763354659075,0.02479,95553.0,95550.0,0.00013264]
[1763354659326,0.02738,95551.0,95550.0,0.00013264]
[1763354659874,0.05217,95551.0,95550.0,0.00013264]
[1763354665514,0.22001,95551.0,95550.0,0.00013264]
[1763354666139,0.13609,95551.0,95550.0,0.00013264]
[1763354666933,0.05217,95551.0,95550.0,0.00013264]
[1763354668198,0.06860326,95551.0,95550.0,0.00013264]
[1763354669359,0.42308208,95551.0,95550.0,0.00013264]
[1763354674565,0.01643326,95551.0,95550.0,0.00013264]
[1763354675165,0.0119,95556.0,95550.0,0.00013264]
[1763354675368,0.08392,95558.0,95551.0,0.09980931]
[1763354675568,0.002,95559.0,95551.0,0.09980931]
[1763354678135,0.002,95559.0,95552.0,0.04341874]
[1763354679723,0.0119,95558.0,95552.0,0.04341874]
[1763354682581,0.002,95559.0,95552.0,0.04341874]
[1763354682804,0.0119,95569.0,95559.0,0.04341874]
[1763354682805,0.323,95569.0,95559.0,0.04341874]
[1763354683022,0.0002,95580.0,95559.0,0.5304811]
[1763354683257,0.01642788,95578.0,95559.0,0.36812698]
[1763354683482,0.0002,95580.0,95561.0,0.04341874]
[1763354683706,0.0002,95580.0,95569.0,0.04341874]
[1763354683926,0.0002,95580.0,95568.0,0.16235412]
[1763354683927,0.0002,95580.0,95579.0,0.09980931]
[1763354684382,0.04047,95580.0,95573.0,0.04341874]
[1763354684607,0.04047,95580.0,95570.0,0.04341874]
[1763354685042,0.02738,95561.0,95560.0,0.1]
[1763354685258,0.02738,95561.0,95553.0,0.04341874]
[1763354685694,0.02738,95561.0,95552.0,0.09980931]
[1763354685695,0.08392,95560.0,95552.0,0.09980931]
[1763354685913,0.08392,95560.0,95555.0,0.1]
[1763354686123,0.08392,95560.0,95556.0,0.04341874]
[1763354686335,0.08392,95560.0,95559.0,0.1]
[1763354687730,0.0119,95561.0,95559.0,0.1]
[1763354687942,0.0119,95561.0,95559.0,0.101]
[1763354688536,0.01659,95560.0,95559.0,0.101]
[1763354688763,0.01659,95560.0,95559.0,0.1]
[1763354688976,0.01659,95560.0,95559.0,0.102]
[1763354689457,0.01659,95560.0,95559.0,0.101]
[1763354690736,0.01659,95560.0,95559.0,0.102]
[1763354691161,0.0119,95561.0,95559.0,0.102]
[1763354692002,0.0119,95561.0,95559.0,0.1]
[1763354692211,0.0119,95561.0,95559.0,0.102]
[1763354693942,0.03929,95560.0,95559.0,0.102]
[1763354694353,0.03929,95560.0,95559.0,0.002]
[1763354694761,0.03929,95560.0,95559.0,0.001]
[1763354694966,0.03929,95560.0,95552.0,0.000261]
[1763354695166,0.01659,95553.0,95552.0,0.000261]
[1763354695396,0.42347,95553.0,95552.0,0.000261]
[1763354695593,0.53005,95553.0,95552.0,0.000261]
[1763354696688,0.50735,95553.0,95552.0,0.000261]
[1763354698110,0.50735,95553.0,95552.0,0.100261]
[1763354698333,0.50735,95553.0,95552.0,0.101261]
[1763354698528,0.42347,95553.0,95552.0,0.101261]
[1763354698700,0.42347,95553.0,95552.0,0.102261]
[1763354699435,0.44617,95553.0,95552.0,0.102261]
[1763354700629,0.36229,95553.0,95552.0,0.102261]
[1763354701280,0.323,95553.0,95552.0,0.102261]
[1763354701492,0.01643059,95555.0,95552.0,0.102261]
[1763354701695,0.01643059,95555.0,95554.0,0.09980931]
[1763354703474,0.01643059,95555.0,95554.0,0.10080931]
[1763354703702,0.01643059,95555.0,95554.0,0.20080931]
[1763354704330,0.01643059,95555.0,95554.0,0.20180931]
[1763354704754,0.01643059,95555.0,95554.0,0.24522805]
[1763354705103,0.01643059,95555.0,95554.0,0.14522805]
[1763354705319,0.01179,95575.0,95555.0,0.04341874]
[1763354705541,0.323,95569.0,95555.0,0.04341874]
[1763354705766,0.01659,95555.0,95554.0,0.001]
[1763354706207,0.03929,95555.0,95553.0,0.1]
[1763354706414,0.323,95564.0,95553.0,0.1]
[1763354706625,0.0227,95563.0,95554.0,0.001]
[1763354706838,0.0227,95563.0,95553.0,0.1]
[1763354707048,0.01659,95554.0,95553.0,0.1]
[1763354708713,0.01659,95554.0,95553.0,0.101]
[1763354709329,0.01659,95554.0,95553.0,0.102]
[1763354709538,0.0227,95561.0,95553.0,0.102]
[1763354710295,0.3394297,95569.0,95554.0,0.09980931]
[1763354710511,0.0227,95566.0,95554.0,0.09980931]
[1763354710720,0.0227,95566.0,95557.0,0.1]
[1763354711139,0.01659,95558.0,95557.0,0.1]
[1763354711706,0.01659,95558.0,95552.0,0.000261]
[1763354711707,0.03929,95558.0,95553.0,0.1]
[1763354711915,0.0227,95558.0,95553.0,0.1]
[1763354712085,0.01659,95554.0,95553.0,0.1]
[1763354712599,0.03929,95554.0,95553.0,0.1]
[1763354713451,0.03929,95554.0,95553.0,0.101]
[1763354713703,0.03929,95554.0,95553.0,0.001]
[1763354714329,0.03929,95554.0,95552.0,0.000261]
[1763354714556,0.03929,95553.0,95552.0,0.000261]
[1763354715482,0.53013,95553.0,95552.0,0.000261]
[1763354716670,0.44621,95553.0,95552.0,0.000261]
[1763354716892,0.39376902,95553.0,95552.0,0.000261]
[1763354717086,0.323,95552.0,95480.0,0.28679422]
[1763354717291,0.01529,95526.0,95516.0,0.1]
[1763354717698,0.03613,95525.0,95516.0,0.1]
[1763354718134,0.03613,95525.0,95516.0,0.2]
[1763354718340,0.02441,95524.0,95516.0,0.2]
[1763354718559,0.01529,95517.0,95516.0,0.2]
[1763354718965,0.0397,95517.0,95516.0,0.2]
[1763354720243,0.02441,95523.0,95516.0,0.201]
[1763354720414,0.02441,95523.0,95516.0,0.202]
[1763354721009,0.02441,95523.0,95516.0,0.201]
[1763354721216,0.01180783,95525.0,95516.0,0.201]
[1763354721839,0.01180783,95525.0,95516.0,0.2]
[1763354722040,8.783e-05,95525.0,95516.0,0.201]
[1763354722236,0.01643309,95523.0,95516.0,0.201]
[1763354722622,0.01643309,95523.0,95516.0,0.202]
[1763354722823,0.01643309,95523.0,95516.0,0.201]
[1763354723051,0.01643309,95523.0,95516.0,0.2]
[1763354723245,0.01643309,95523.0,95516.0,0.201]
[1763354723909,0.01643309,95523.0,95516.0,0.202]
[1763354725382,0.10035309,95523.0,95516.0,0.202]
[1763354725618,0.40692,95522.0,95516.0,0.202]
[1763354726610,0.10035309,95523.0,95516.0,0.202]
[1763354726611,0.01529,95517.0,95516.0,0.2]
[1763354726822,0.01529,95517.0,95516.0,0.102]
[1763354727020,0.0397,95517.0,95516.0,0.102]
[1763354728065,0.0397,95517.0,95516.0,0.101]
[1763354728672,0.0397,95517.0,95516.0,0.102]
[1763354729077,0.0397,95517.0,95516.0,0.101]
[1763354729879,0.0397,95517.0,95516.0,0.001]
[1763354731100,0.0397,95517.0,95507.0,0.1]
[1763354731303,0.03613,95516.0,95507.0,0.1]
[1763354731507,0.01172,95516.0,95507.0,0.1]
[1763354731712,0.01529,95508.0,95507.0,0.1]
[1763354732154,0.01172,95516.0,95507.0,0.1]
[1763354732358,0.01172,95516.0,95509.0,0.09980931]
[1763354732829,0.02441,95515.0,95509.0,0.09980931]
[1763354733028,0.01529,95510.0,95509.0,0.09980931]
[1763354733228,0.01529,95510.0,95507.0,0.101]
[1763354733528,0.01529,95508.0,95507.0,0.101]
[1763354733955,0.0397,95508.0,95507.0,0.101]
[1763354734159,0.0397,95508.0,95507.0,0.1]
[1763354734355,0.01529,95508.0,95507.0,0.1]
[1763354734552,0.02441,95514.0,95507.0,0.1]
[1763354735203,0.02441,95514.0,95507.0,0.101]
[1763354735399,0.08392,95513.0,95507.0,0.1]
[1763354735600,0.49084,95513.0,95507.0,0.1]
[1763354737230,0.01172,95516.0,95507.0,0.1]
[1763354737231,0.01643565,95517.0,95509.0,0.09980931]
[1763354737637,0.01643565,95517.0,95510.0,0.04341874]
[1763354738221,8.783e-05,95525.0,95510.0,0.04341874]
[1763354738814,8.783e-05,95525.0,95524.0,0.09980931]
[1763354739229,8.783e-05,95525.0,95524.0,0.19980931]
[1763354739428,0.01180783,95525.0,95516.0,0.04341874]
[1763354739629,8.783e-05,95525.0,95524.0,0.09980931]
[1763354740269,8.783e-05,95525.0,95524.0,0.29980931]
[1763354740672,0.01180783,95525.0,95524.0,0.29980931]
[1763354741117,0.01180783,95525.0,95524.0,0.30080931]
[1763354741264,0.01180783,95525.0,95524.0,0.30180931]
[1763354741467,0.01180783,95525.0,95524.0,0.29980931]
[1763354742096,0.01180783,95525.0,95524.0,0.30180931]
[1763354742504,0.05150783,95525.0,95524.0,0.30180931]
[1763354742686,0.05150783,95525.0,95524.0,0.102]
[1763354743292,0.05150783,95525.0,95524.0,0.101]
[1763354743913,0.05150783,95525.0,95524.0,0.1]
[1763354744270,0.05150783,95525.0,95524.0,0.102]
[1763354744471,0.05150783,95525.0,95524.0,0.101]
[1763354745414,0.54234783,95525.0,95524.0,0.101]
[1763354746735,0.45842783,95525.0,95524.0,0.101]
[1763354746905,0.37450783,95525.0,95524.0,0.001]
[1763354747113,0.37450783,95525.0,95524.0,0.07915284]
[1763354747321,0.37450783,95525.0,95524.0,0.001]
[1763354747607,0.323,95524.0,95511.0,0.1493]
[1763354747810,0.02848,95512.0,95511.0,0.1493]
[1763354748187,0.05172,95512.0,95511.0,0.1493]
[1763354748715,0.05172,95512.0,95511.0,0.2493]
[1763354749058,0.05172,95512.0,95511.0,0.3272906]
[1763354750293,0.05172,95512.0,95511.0,0.3282906]
[1763354750665,0.01215,95512.0,95511.0,0.3282906]
[1763354750830,0.01215,95512.0,95511.0,0.1789906]
[1763354751251,0.01215,95518.0,95511.0,0.1789906]
[1763354751816,0.01643507,95517.0,95511.0,0.1789906]
[1763354752094,0.01215,95518.0,95511.0,0.1789906]
[1763354753024,0.01215,95518.0,95511.0,0.1779906]
[1763354753227,0.01215,95518.0,95517.0,0.1]
[1763354753615,0.05172,95518.0,95517.0,0.1]
[1763354754402,0.05172,95518.0,95517.0,0.101]
[1763354755004,0.06815505,95518.0,95517.0,0.101]
[1763354755378,0.47507505,95518.0,95517.0,0.101]
[1763354755578,0.55899505,95518.0,95517.0,0.101]
[1763354759151,0.47507505,95518.0,95517.0,0.101]
[1763354759525,0.47651779,95518.0,95517.0,0.101]
[1763354761294,0.39259779,95518.0,95517.0,0.101]
[1763354765097,0.39259779,95518.0,95517.0,0.001]
[1763354765519,0.323,95517.0,95492.0,0.1493]
[1763354765735,0.02848,95495.0,95491.0,0.1513]
[1763354766156,0.05172,95495.0,95491.0,0.1513]
[1763354766582,0.05172,95495.0,95491.0,0.002]
[1763354766997,0.05176414,95495.0,95494.0,0.20080931]
[1763354767204,0.05176414,95495.0,95494.0,0.20180931]
[1763354767413,4.414e-05,95495.0,95494.0,0.20180931]
[1763354767617,4.414e-05,95495.0,95494.0,0.20080931]
[1763354768237,4.414e-05,95495.0,95494.0,0.19980931]
[1763354768446,4.414e-05,95495.0,95494.0,0.20080931]
[1763354768886,4.414e-05,95495.0,95494.0,0.27880779]
[1763354770587,0.01637414,95495.0,95494.0,0.27880779]
[1763354770787,0.03961414,95495.0,95494.0,0.07899848]
[1763354770944,0.04042723,95495.0,95494.0,0.07899848]
[1763354771696,0.04042723,95495.0,95494.0,0.07799848]
[1763354772064,0.04042723,95495.0,95494.0,0.07699848]
[1763354772375,0.04042723,95495.0,95491.0,0.002]
[1763354772576,0.01706094,95492.0,95491.0,0.002]
[1763354773113,0.04030094,95492.0,95491.0,0.002]
[1763354775426,0.44726094,95492.0,95491.0,0.002]
[1763354775637,0.53122094,95492.0,95491.0,0.002]
[1763354777398,0.53122094,95492.0,95491.0,0.08047851]